bitfinex/quotes_SOLUSD_20250321
["timestamp","ask_amount","ask_price","bid_price","bid_amount"]
[1742526196879,32.60140449,128.25,128.24,0.03]
[1742526197880,32.31708135,128.25,128.24,0.03]
[1742526202273,13.66743249,128.26,128.24,0.03]
[1742526202466,13.66743249,128.27,128.24,0.03]
[1742526203888,13.73043249,128.27,128.24,0.03]
[1742526204985,0.063,128.27,128.24,0.03]
[1742526205383,0.063,128.27,128.24,312.03]
[1742526206574,0.063,128.27,128.24,325.69743249]
[1742526207104,0.063,128.27,128.25,7.7972]
[1742526207277,0.063,128.27,128.26,21.57523249]
[1742526207483,0.063,128.27,128.26,28.25523249]
[1742526208776,0.063,128.27,128.26,14.5878]
[1742526208976,0.063,128.27,128.26,22.3844]
[1742526210286,0.063,128.27,128.26,334.3844]
[1742526222113,0.063,128.27,128.26,348.05183249]
[1742526222316,0.063,128.27,128.26,36.05183249]
[1742526225321,0.063,128.27,128.26,348.05183249]
[1742526230126,0.063,128.27,128.26,334.3844]
[1742526230329,0.063,128.27,128.26,348.05183249]
[1742526239534,0.063,128.27,128.26,341.70383249]
[1742526240137,0.063,128.27,128.26,328.0364]
[1742526242347,0.063,128.27,128.26,341.70383249]
[1742526243418,13.66743249,128.34,128.27,20.28432314]
[1742526243616,21.48883249,128.35,128.29,13.66743249]
[1742526243827,13.66743249,128.34,128.29,13.66743249]
[1742526244742,13.66743249,128.34,128.3,7.7942]
[1742526245941,13.66743249,128.34,128.3,21.46163249]
[1742526246243,13.66743249,128.34,128.3,28.10163249]
[1742526247843,13.66743249,128.34,128.3,340.10163249]
[1742526249148,21.45943249,128.34,128.3,340.10163249]
[1742526250350,21.45943249,128.34,128.3,326.4342]
[1742526251552,21.45943249,128.34,128.3,6.64]
[1742526251762,13.66743249,128.32,128.27,33.66743249]
[1742526252066,13.66743249,128.3,128.26,23.02373249]
[1742526252254,13.66743249,128.3,128.27,6.64]
[1742526253782,21.46193249,128.3,128.27,6.64]
[1742526254581,21.46193249,128.3,128.27,318.64]
[1742526255347,13.66743249,128.3,128.27,318.64]
[1742526257470,13.66743249,128.3,128.27,6.64]
[1742526258373,21.46163249,128.3,128.27,6.64]
[1742526260468,21.46163249,128.3,128.27,318.64]
[1742526261268,13.66743249,128.3,128.27,326.4359]
[1742526261454,21.46123249,128.31,128.27,326.4359]
[1742526264382,21.46123249,128.31,128.27,326.4659]
[1742526264758,21.52423249,128.31,128.27,326.4659]
[1742526265248,13.73043249,128.31,128.27,326.4659]
[1742526265564,18.71264886,128.31,128.27,340.13333249]
[1742526270587,18.71264886,128.31,128.27,326.4659]
[1742526272175,0.063,128.31,128.27,360.13333249]
[1742526272385,0.063,128.31,128.28,13.66743249]
[1742526273084,0.063,128.31,128.29,13.66743249]
[1742526274480,0.063,128.31,128.27,53.956]
[1742526274668,0.063,128.31,128.28,13.66743249]
[1742526276398,0.063,128.31,128.29,312.0]
[1742526277932,0.063,128.31,128.3,7.7942]
[1742526278902,0.063,128.31,128.3,21.46163249]
[1742526281802,0.063,128.31,128.3,7.7942]
[1742526283695,0.063,128.31,128.3,319.7942]
[1742526284893,0.063,128.31,128.3,333.46163249]
[1742526288293,0.063,128.31,128.3,319.7942]
[1742526288993,0.063,128.31,128.27,40.33743249]
[1742526289176,13.73043249,128.31,128.28,7.7951]
[1742526289375,13.73043249,128.31,128.28,14.3951]
[1742526289583,13.73043249,128.31,128.28,6.6]
[1742526290185,0.063,128.31,128.28,6.6]
[1742526290385,0.063,128.31,128.27,41.49313249]
[1742526290580,0.063,128.31,128.28,6.6]
[1742526291999,0.063,128.31,128.28,326.395]
[1742526296291,13.73043249,128.31,128.28,318.6]
[1742526296696,13.73043249,128.31,128.28,312.0]
[1742526298501,21.52403249,128.31,128.28,312.0]
[1742526300779,13.66743249,128.3,128.28,312.0]
[1742526302405,21.46173249,128.3,128.28,312.0]
[1742526303502,13.66743249,128.29,128.28,312.0]
[1742526303705,13.66743249,128.29,128.27,0.03]
[1742526305212,21.46243249,128.29,128.27,0.03]
[1742526305380,7.795,128.29,128.27,0.03]
[1742526305803,21.46193249,128.3,128.27,0.03]
[1742526306702,21.46193249,128.3,128.27,312.03]
[1742526307122,13.66743249,128.3,128.27,312.03]
[1742526307293,18.64964886,128.3,128.27,312.03]
[1742526307783,0.063,128.31,128.27,333.49343249]
[1742526307988,0.063,128.31,128.28,13.66743249]
[1742526308789,0.063,128.31,128.27,21.49343249]
[1742526308989,18.71264886,128.31,128.27,21.49343249]
[1742526309209,13.66743249,128.3,128.27,0.03]
[1742526310514,32.38008135,128.31,128.27,0.03]
[1742526310892,32.38008135,128.31,128.27,312.03]
[1742526311499,32.38008135,128.31,128.27,325.69743249]
[1742526312227,32.38008135,128.31,128.27,333.49283249]
[1742526314729,32.38008135,128.31,128.27,319.8254]
[1742526319912,40.17368135,128.31,128.27,319.8254]
[1742526320221,40.17368135,128.31,128.27,312.03]
[1742526320426,13.66743249,128.3,128.27,312.03]
[1742526321629,21.46173249,128.3,128.27,312.03]
[1742526321823,13.66743249,128.3,128.27,0.03]
[1742526322948,21.46173249,128.3,128.27,0.03]
[1742526324831,21.46173249,128.3,128.27,312.03]
[1742526326404,13.66743249,128.29,128.27,312.03]
[1742526326803,21.46173249,128.3,128.27,312.03]
[1742526334041,21.46173249,128.3,128.27,0.03]
[1742526337036,21.46173249,128.3,128.27,312.03]
[1742526337840,21.52473249,128.3,128.27,312.03]
[1742526338211,21.52473249,128.3,128.27,0.03]
[1742526338420,13.66743249,128.28,128.27,0.03]
[1742526340041,32.31708135,128.28,128.27,0.03]
[1742526340243,40.11248135,128.28,128.27,0.03]
[1742526343534,95.06653445,128.28,128.27,0.03]
[1742526344332,95.35085759,128.28,128.27,0.0001]
[1742526350337,0.28432314,128.26,128.25,0.03]
[1742526350516,39.46572763,128.26,128.24,0.03]
[1742526350720,40.68292763,128.25,128.24,0.03]
[1742526351249,40.54076606,128.25,128.24,0.03]
[1742526351458,40.68292763,128.25,128.24,0.03]
[1742526352990,46.81990306,128.25,128.24,0.03]
[1742526354416,20.0,128.22,128.2,0.063]
[1742526354615,32.60140449,128.21,128.2,0.063]
[1742526355539,40.40110449,128.21,128.2,0.063]
[1742526357825,40.68542763,128.21,128.2,0.063]
[1742526359258,20.0,128.18,128.13,7.8752]
[1742526359449,0.28432314,128.12,128.07,12.19703547]
[1742526359747,13.66743249,128.09,128.07,12.19703547]
[1742526359930,52.31708135,128.1,128.07,12.19703547]
[1742526360134,7.28864628,128.13,128.07,12.19703547]
[1742526360135,18.64964886,128.11,128.07,12.19703547]
[1742526360433,32.31708135,128.11,128.07,12.19703547]
[1742526360639,18.64964886,128.11,128.07,25.86446796]
[1742526360832,18.64964886,128.12,128.08,13.66743249]
[1742526361227,18.933972,128.14,128.08,13.66743249]
[1742526361428,18.64964886,128.12,128.08,13.66743249]
[1742526362244,18.64964886,128.12,128.08,325.66743249]
[1742526362922,6.72,128.15,128.09,13.66743249]
[1742526363128,6.72,128.15,128.08,319.8075]
[1742526363129,32.31708135,128.14,128.1,13.66743249]
[1742526363527,18.64964886,128.14,128.1,13.66743249]
[1742526363743,13.66743249,128.13,128.08,20.0]
[1742526363940,13.66743249,128.13,128.08,33.66743249]
[1742526364637,13.66743249,128.13,128.08,13.66743249]
[1742526364838,13.66743249,128.13,128.09,13.66743249]
[1742526365144,142.98216157,128.18,128.1,13.66743249]
[1742526365355,142.98216157,128.18,128.09,20.0]
[1742526365356,13.66743249,128.15,128.11,13.66743249]
[1742526365650,18.64964886,128.17,128.09,20.0]
[1742526365651,13.66743249,128.14,128.1,20.38743249]
[1742526365853,18.64964886,128.17,128.1,20.38743249]
[1742526365854,13.66743249,128.15,128.1,20.38743249]
[1742526366253,13.66743249,128.15,128.11,325.66743249]
[1742526367248,13.66743249,128.16,128.11,325.66743249]
[1742526367446,13.66743249,128.16,128.11,333.47263249]
[1742526368150,13.66743249,128.17,128.12,15.26683249]
[1742526368652,13.66743249,128.16,128.12,1.5994]
[1742526368852,13.66743249,128.15,128.12,1.5994]
[1742526369032,18.64964886,128.18,128.12,1.5994]
[1742526369232,13.66743249,128.16,128.12,1.5994]
[1742526369436,13.66743249,128.15,128.12,1.5994]
[1742526370740,13.66743249,128.15,128.12,9.4045]
[1742526370940,13.66743249,128.16,128.12,9.4045]
[1742526371760,18.64964886,128.18,128.12,23.07193249]
[1742526372059,13.66743249,128.17,128.12,23.07193249]
[1742526372258,32.31708135,128.18,128.13,13.66743249]
[1742526372838,13.66743249,128.17,128.13,13.66743249]
[1742526373456,32.31708135,128.18,128.14,13.66743249]
[1742526373664,25.653972,128.22,128.15,13.66743249]
[1742526373856,13.73043249,128.2,128.16,7.8027]
[1742526374157,13.73043249,128.2,128.16,21.47013249]
[1742526374558,0.063,128.2,128.16,21.47013249]
[1742526376553,0.063,128.2,128.16,333.47013249]
[1742526378062,13.73043249,128.2,128.16,333.47013249]
[1742526379546,13.73043249,128.2,128.16,352.97693249]
[1742526379866,0.063,128.2,128.16,352.97693249]
[1742526382845,0.063,128.2,128.16,40.97693249]
[1742526383771,0.063,128.2,128.17,13.66743249]
[1742526385171,0.063,128.2,128.18,7.8015]
[1742526387057,0.063,128.2,128.18,21.46893249]
[1742526389155,0.063,128.2,128.19,21.46833249]
[1742526391867,0.063,128.2,128.19,333.46833249]
[1742526392267,0.063,128.2,128.18,6.7]
[1742526392446,13.73043249,128.2,128.17,1.5161]
[1742526393475,21.53083249,128.2,128.16,0.03]
[1742526393665,13.66743249,128.18,128.16,0.03]
[1742526395176,13.66743249,128.19,128.16,0.03]
[1742526395359,13.66743249,128.19,128.16,312.03]
[1742526395872,13.66743249,128.19,128.16,319.8327]
[1742526397457,13.66743249,128.19,128.16,312.03]
[1742526397664,32.31708135,128.17,128.16,0.03]
[1742526398581,40.11918135,128.17,128.16,0.03]
[1742526398874,40.68782763,128.17,128.16,0.03]
[1742526399976,20.0,128.13,128.08,13.66743249]
[1742526400159,13.66743249,128.12,128.08,20.36743249]
[1742526400557,13.66743249,128.12,128.08,332.36743249]
[1742526400956,13.66743249,128.12,128.08,326.5075]
[1742526401170,13.66743249,128.11,128.08,312.0]
[1742526401363,32.31708135,128.13,128.08,333.47483249]
[1742526401978,32.31708135,128.13,128.08,319.8074]
[1742526402157,13.66743249,128.12,128.08,319.8074]
[1742526402357,13.66743249,128.11,128.08,312.0]
[1742526402564,13.66743249,128.12,128.08,333.47493249]
[1742526402958,18.64964886,128.13,128.07,0.03]
[1742526402959,13.66743249,128.1,128.07,0.03]
[1742526403160,13.66743249,128.12,128.08,13.66743249]
[1742526403364,20.38743249,128.14,128.1,13.66743249]
[1742526403671,13.66743249,128.15,128.1,13.66743249]
[1742526404077,26.736772,128.16,128.1,13.66743249]
[1742526404078,13.66743249,128.14,128.1,13.66743249]
[1742526404460,13.66743249,128.15,128.1,13.66743249]
[1742526404779,32.31708135,128.16,128.11,13.66743249]
[1742526404975,13.66743249,128.15,128.11,13.66743249]
[1742526405279,13.66743249,128.15,128.11,21.47253249]
[1742526405873,13.66743249,128.15,128.11,319.8051]
[1742526406759,32.31708135,128.16,128.11,333.47253249]
[1742526406962,32.31708135,128.16,128.11,340.19253249]
[1742526408164,13.66743249,128.15,128.11,326.5251]
[1742526408381,13.66743249,128.14,128.11,326.5251]
[1742526408587,13.66743249,128.15,128.11,326.5251]
[1742526410397,13.66743249,128.15,128.11,326.5551]
[1742526411990,32.38008135,128.16,128.11,340.22253249]
[1742526412782,32.38008135,128.16,128.11,326.5551]
[1742526412998,32.38008135,128.16,128.11,340.22253249]
[1742526414291,32.38008135,128.16,128.11,326.5551]
[1742526415471,13.66743249,128.14,128.11,318.75]
[1742526415671,13.66743249,128.14,128.11,6.75]
[1742526415883,13.66743249,128.14,128.11,0.03]
[1742526416089,13.66743249,128.14,128.11,7.8356]
[1742526416286,26.51544886,128.16,128.11,21.50303249]
[1742526416287,32.38008135,128.16,128.11,21.50303249]
[1742526417791,13.73043249,128.16,128.11,21.50303249]
[1742526418679,13.73043249,128.16,128.11,333.50303249]
[1742526421186,0.063,128.16,128.11,353.01743249]
[1742526421699,0.063,128.16,128.12,6.7]
[1742526422294,13.73043249,128.16,128.13,7.8045]
[1742526422600,0.063,128.16,128.13,7.8045]
[1742526425775,13.73043249,128.16,128.13,7.8045]
[1742526426601,13.73043249,128.16,128.13,319.8045]
[1742526426803,0.063,128.16,128.13,319.8045]
[1742526426980,0.063,128.16,128.13,7.8045]
[1742526427174,21.53333249,128.16,128.12,14.5048]
[1742526427396,21.53333249,128.16,128.12,7.8048]
[1742526428030,13.73043249,128.16,128.12,7.8048]
[1742526428399,0.063,128.16,128.12,7.8048]
[1742526428703,13.73043249,128.16,128.12,7.8048]
[1742526430004,13.73043249,128.16,128.12,319.8048]
[1742526430904,0.063,128.16,128.12,333.47223249]
[1742526432102,13.66743249,128.15,128.12,312.0]
[1742526432298,13.66743249,128.15,128.11,7.8354]
[1742526432497,18.71264886,128.16,128.12,13.66743249]
[1742526432498,0.063,128.16,128.12,13.66743249]
[1742526432984,13.73043249,128.16,128.11,27.80823249]
[1742526433182,32.38008135,128.16,128.11,27.80823249]
[1742526433401,13.66743249,128.15,128.11,6.3354]
[1742526434202,13.66743249,128.14,128.11,6.3354]
[1742526434892,13.66743249,128.14,128.11,0.03]
[1742526435086,21.47173249,128.14,128.11,0.03]
[1742526436608,13.66743249,128.12,128.11,0.03]
[1742526436802,21.47173249,128.14,128.11,0.03]
[1742526437607,44.96054886,128.16,128.12,13.66743249]
[1742526437608,0.063,128.16,128.12,13.66743249]
[1742526437796,0.063,128.16,128.13,13.66743249]
[1742526438301,0.063,128.16,128.14,15.24533249]
[1742526438508,0.063,128.16,128.14,23.04883249]
[1742526439507,0.063,128.16,128.14,335.04883249]
[1742526447008,0.063,128.16,128.15,13.66743249]
[1742526447408,0.063,128.16,128.14,341.3814]
[1742526447409,0.063,128.16,128.14,29.3814]
[1742526447611,0.063,128.16,128.15,13.66743249]
[1742526448508,0.063,128.16,128.15,21.47073249]
[1742526450409,0.063,128.16,128.15,333.47073249]
[1742526450619,0.063,128.16,128.15,325.66743249]
[1742526450820,0.063,128.16,128.15,312.0]
[1742526451017,0.063,128.16,128.15,325.66743249]
[1742526451916,0.063,128.16,128.15,312.0]
[1742526452605,21.53313249,128.16,128.12,39.67853249]
[1742526452805,21.53313249,128.16,128.12,33.66743249]
[1742526453009,13.73043249,128.16,128.12,41.47223249]
[1742526453226,13.73043249,128.16,128.12,20.0]
[1742526453530,13.66743249,128.13,128.11,0.03]
[1742526454522,7.8051,128.12,128.11,0.03]
[1742526454826,21.47253249,128.12,128.11,0.03]
[1742526455215,40.12218135,128.12,128.11,0.03]
[1742526455410,18.64964886,128.13,128.11,0.03]
[1742526455630,32.31708135,128.13,128.11,0.03]
[1742526455931,13.66743249,128.12,128.11,0.03]
[1742526456706,40.12218135,128.12,128.11,0.03]
[1742526459132,67.28372763,128.12,128.07,0.03]
[1742526459319,32.60140449,128.08,128.07,0.03]
[1742526460311,32.88572763,128.08,128.07,0.03]
[1742526460724,40.40900449,128.08,128.07,0.03]
[1742526461035,32.60140449,128.08,128.07,0.03]
[1742526461327,20.0,128.09,128.07,0.03]
[1742526461631,13.66743249,128.1,128.07,0.03]
[1742526461839,18.64964886,128.11,128.07,13.69743249]
[1742526462011,32.31708135,128.11,128.07,13.69743249]
[1742526462210,32.31708135,128.11,128.07,312.03]
[1742526462926,32.31708135,128.11,128.07,319.8381]
[1742526463123,21.42673617,128.1,128.07,312.03]
[1742526464027,21.42673617,128.1,128.07,0.03]
[1742526466830,18.64964886,128.09,128.07,0.03]
[1742526467038,40.07638503,128.09,128.07,0.03]
[1742526469133,40.07638503,128.08,128.07,0.03]
[1742526469311,21.42673617,128.09,128.07,0.03]
[1742526471937,40.07638503,128.08,128.07,0.03]
[1742526474043,48.16830817,128.08,128.07,0.03]
[1742526482246,21.42673617,128.09,128.07,0.03]
[1742526482446,18.64964886,128.1,128.07,0.03]
[1742526482951,20.0,128.1,128.08,21.42673617]
[1742526483152,20.0,128.1,128.07,0.03]
[1742526483153,20.0,128.1,128.07,13.74193249]
[1742526484135,20.0,128.1,128.07,0.03]
[1742526484345,20.0,128.1,128.07,21.54963249]
[1742526484651,20.0,128.1,128.07,333.54963249]
[1742526485257,20.0,128.1,128.07,319.8377]
[1742526489138,20.0,128.1,128.07,333.54963249]
[1742526489559,20.0,128.1,128.07,21.54963249]
[1742526490062,20.0,128.1,128.07,7.8377]
[1742526490260,6.6419,128.01,128.0,2.5730189]
[1742526490447,20.0,127.98,127.94,24.36407094]
[1742526490645,40.60296606,127.96,127.94,24.36407094]
[1742526490956,32.36158135,127.96,127.94,24.36407094]
[1742526491140,13.71193249,127.96,127.94,24.36407094]
[1742526491342,40.74512763,127.96,127.94,24.36407094]
[1742526491542,0.28432314,127.95,127.94,24.36407094]
[1742526491743,32.36158135,127.95,127.94,23.86407094]
[1742526492550,32.36158135,127.95,127.9,312.0]
[1742526492746,13.71193249,127.92,127.9,312.0]
[1742526492952,13.71193249,127.93,127.9,312.0]
[1742526493258,21.48617862,127.92,127.9,312.0]
[1742526494361,21.48617862,127.92,127.87,27.44]
[1742526494674,21.48617862,127.91,127.87,7.44]
[1742526494859,7.8174,127.92,127.87,7.44]
[1742526494860,21.48617862,127.9,127.87,7.44]
[1742526495592,21.48617862,127.91,127.87,7.44]
[1742526495956,7.8174,127.92,127.86,6.0302]
[1742526496151,21.48617862,127.9,127.86,6.0302]
[1742526496353,21.48617862,127.92,127.87,21.48617862]
[1742526496656,21.48617862,127.94,127.89,29.30527862]
[1742526496871,21.48617862,127.93,127.88,29.30577862]
[1742526497356,21.48617862,127.93,127.89,312.0]
[1742526497870,21.48617862,127.92,127.89,312.0]
[1742526498061,21.48617862,127.9,127.86,35.01637862]
[1742526498453,21.48617862,127.9,127.86,13.5302]
[1742526498781,29.30507862,127.9,127.86,6.0302]
[1742526500070,21.48617862,127.89,127.85,1.5969]
[1742526500278,21.48617862,127.88,127.85,1.5969]
[1742526500463,21.48617862,127.88,127.83,33.9067]
[1742526500666,21.48617862,127.88,127.84,21.48617862]
[1742526500858,21.48617862,127.88,127.84,29.30827862]
[1742526501054,21.48617862,127.89,127.85,21.48617862]
[1742526501258,29.30477862,127.9,127.85,21.48617862]
[1742526501776,21.48617862,127.88,127.84,333.48617862]
[1742526501987,21.48617862,127.88,127.84,312.0]
[1742526502160,21.48617862,127.87,127.84,312.0]
[1742526502683,40.13582748,127.88,127.84,333.48617862]
[1742526504365,40.13582748,127.88,127.84,312.0]
[1742526504568,21.48617862,127.87,127.84,312.0]
[1742526504883,21.48617862,127.86,127.84,312.0]
[1742526505062,21.48617862,127.86,127.83,7.48]
[1742526505386,21.48617862,127.86,127.82,29.30937862]
[1742526505758,21.48617862,127.87,127.82,29.30937862]
[1742526506184,21.48617862,127.86,127.81,9.4253]
[1742526506478,21.48617862,127.86,127.81,30.91147862]
[1742526507975,21.48617862,127.87,127.83,312.0]
[1742526508588,21.48617862,127.88,127.83,333.48617862]
[1742526508882,7.46,127.89,127.85,21.48617862]
[1742526509185,40.13582748,127.9,127.85,21.48617862]
[1742526509382,21.48617862,127.9,127.86,7.821]
[1742526509574,40.13582748,127.91,127.86,29.30717862]
[1742526509772,21.48617862,127.9,127.86,29.30717862]
[1742526509977,21.48617862,127.92,127.87,21.48617862]
[1742526510277,21.48617862,127.92,127.86,7.821]
[1742526510278,21.48617862,127.92,127.88,21.48617862]
[1742526510485,21.48617862,127.92,127.87,21.48617862]
[1742526510683,21.48617862,127.93,127.88,21.48617862]
[1742526510866,21.54917862,127.94,127.9,21.48617862]
[1742526511067,0.063,127.94,127.9,21.48617862]
[1742526511273,0.063,127.94,127.91,21.48617862]
[1742526511473,0.063,127.94,127.92,7.8173]
[1742526511682,0.063,127.94,127.92,341.30347862]
[1742526512075,0.063,127.94,127.93,21.48617862]
[1742526512782,0.063,127.94,127.92,29.30347862]
[1742526515174,0.063,127.94,127.93,312.0]
[1742526515580,0.063,127.94,127.93,319.8167]
[1742526520276,0.063,127.94,127.93,312.0]
[1742526521903,0.063,127.94,127.93,341.30287862]
[1742526523595,0.063,127.94,127.93,29.30287862]
[1742526524805,0.063,127.94,127.93,7.8167]
[1742526525000,0.063,127.94,127.92,7.8171]
[1742526525393,0.063,127.94,127.91,7.8179]
[1742526526600,0.063,127.94,127.92,312.0]
[1742526528885,21.48617862,127.93,127.89,29.30517862]
[1742526529297,21.54917862,127.94,127.89,29.30517862]
[1742526529804,21.54917862,127.94,127.9,21.48617862]
[1742526530104,29.36547862,127.94,127.88,89.0195]
[1742526530289,21.48617862,127.93,127.88,110.50567862]
[1742526530490,21.48617862,127.92,127.88,81.2]
[1742526531698,21.48617862,127.92,127.88,89.0198]
[1742526531905,7.8793,127.94,127.88,422.50597862]
[1742526531906,21.48617862,127.93,127.88,422.50597862]
[1742526532311,29.30297862,127.93,127.89,0.03]
[1742526533513,21.48617862,127.92,127.89,0.03]
[1742526534211,29.30297862,127.93,127.89,0.03]
[1742526534814,21.48617862,127.93,127.89,0.03]
[1742526535915,21.48617862,127.92,127.89,0.03]
[1742526537118,21.48617862,127.93,127.89,0.03]
[1742526538014,21.48617862,127.93,127.89,312.03]
[1742526539717,21.48617862,127.93,127.89,319.8489]
[1742526540218,21.48617862,127.92,127.89,0.03]
[1742526540515,21.48617862,127.92,127.89,7.8491]
[1742526540922,21.48617862,127.92,127.89,0.03]
[1742526541109,13.75373522,127.92,127.89,0.03]
[1742526541502,13.75373522,127.91,127.89,0.03]
[1742526541920,21.57173522,127.91,127.89,0.03]
[1742526542219,21.57173522,127.91,127.87,0.03]
[1742526542220,176.34440722,127.9,127.87,0.03]
[1742526542421,14.03805836,127.88,127.87,0.03]
[1742526542716,21.49805836,127.88,127.87,0.03]
[1742526543807,29.31785836,127.88,127.87,0.03]
[1742526544197,48.25183036,127.88,127.87,0.03]
[1742526545108,56.0097009,127.88,127.87,0.03]
[1742526546214,55.86753933,127.88,127.87,0.03]
[1742526546420,56.0097009,127.88,127.87,0.03]
[1742526547622,192.1097009,127.88,127.87,0.03]
[1742526549133,184.36537776,127.88,127.87,0.03]
[1742526549330,157.61160576,127.88,127.87,0.03]
[1742526549630,21.51160576,127.88,127.87,0.03]
[1742526551144,28.93160576,127.89,127.87,0.03]
[1742526551835,21.51160576,127.88,127.87,0.03]
[1742526553237,21.51160576,127.9,127.87,0.03]
[1742526553431,21.51160576,127.89,127.87,0.03]
[1742526554139,21.51160576,127.9,127.87,0.03]
[1742526556818,21.51160576,127.9,127.87,312.03]
[1742526557629,21.51160576,127.9,127.88,7.8198]
[1742526557836,21.51160576,127.91,127.88,7.8198]
[1742526558841,21.57460576,127.92,127.88,7.8198]
[1742526559137,21.51160576,127.91,127.88,27.3693]
[1742526559442,21.51160576,127.91,127.88,7.8198]
[1742526560130,0.063,127.92,127.89,21.51160576]
[1742526560823,21.51160576,127.91,127.88,7.8198]
[1742526561149,21.57460576,127.92,127.88,7.8198]
[1742526561337,0.063,127.92,127.88,7.8198]
[1742526562442,0.063,127.92,127.88,29.33140576]
[1742526562633,0.063,127.92,127.89,21.51160576]
[1742526563238,0.063,127.92,127.89,333.51160576]
[1742526563847,0.063,127.92,127.89,312.0]
[1742526564226,21.57460576,127.92,127.89,312.0]
[1742526564946,21.57460576,127.92,127.88,15.1598]
[1742526565145,21.51160576,127.91,127.88,7.34]
[1742526565328,21.51160576,127.91,127.87,0.03]
[1742526565746,21.51160576,127.9,127.87,0.03]
[1742526566243,21.51160576,127.91,127.87,0.03]
[1742526566645,21.51160576,127.91,127.87,7.8503]
[1742526567450,29.32960576,127.91,127.87,7.8503]
[1742526568051,29.32960576,127.91,127.87,319.8503]
[1742526568355,21.51160576,127.89,127.87,0.03]
[1742526568771,29.33090576,127.89,127.87,0.03]
[1742526568930,7.8193,127.89,127.87,0.03]
[1742526569131,21.57700863,127.9,127.87,0.03]
[1742526570154,13.75820863,127.88,127.87,0.03]
[1742526570667,21.07820863,127.9,127.87,0.03]
[1742526574358,13.82120863,127.91,127.87,0.03]
[1742526574543,0.063,127.91,127.87,13.78820863]
[1742526575549,0.063,127.91,127.88,13.75820863]
[1742526576238,0.063,127.91,127.89,7.8192]
[1742526577243,21.05820863,127.9,127.87,0.03]
[1742526577437,32.40785749,127.88,127.87,0.03]
[1742526578363,40.22765749,127.88,127.87,0.03]
[1742526578938,21.57800863,127.88,127.87,0.03]
[1742526579145,29.32413783,127.88,127.87,0.03]
[1742526581262,21.50433783,127.89,127.87,0.03]
[1742526581468,28.80433783,127.9,127.87,0.03]
[1742526581941,36.62303783,127.9,127.87,0.03]
[1742526582262,29.32303783,127.9,127.87,0.03]
[1742526582852,21.50433783,127.89,127.87,0.03]
[1742526583048,29.32383783,127.89,127.87,0.03]
[1742526583251,21.50433783,127.88,127.87,0.03]
[1742526585167,29.32383783,127.89,127.87,0.03]
[1742526585555,21.50433783,127.88,127.87,0.03]
[1742526587063,47.97378669,127.88,127.87,0.03]
[1742526589550,21.50433783,127.88,127.87,0.03]
[1742526594276,0.063,127.89,127.87,0.03]
[1742526594277,21.56733783,127.89,127.87,0.03]
[1742526594769,21.50433783,127.88,127.87,0.03]
[1742526601286,13.7613309,127.88,127.87,0.03]
[1742526602288,21.5811309,127.88,127.87,0.03]
[1742526604163,40.5151029,127.88,127.87,0.03]
[1742526604367,95.84474964,127.88,127.87,0.03]
[1742526604566,0.28432314,127.87,127.81,0.03]
[1742526604784,13.7613309,127.83,127.81,0.03]
[1742526605370,13.7613309,127.82,127.81,0.03]
[1742526606077,13.7613309,127.83,127.81,0.03]
[1742526606980,13.7613309,127.82,127.81,0.03]
[1742526608212,13.7613309,127.83,127.81,0.03]
[1742526608390,13.7613309,127.83,127.81,312.03]
[1742526609999,13.7613309,127.83,127.81,319.854]
[1742526611278,13.7613309,127.82,127.81,0.03]
[1742526613213,21.5848309,127.82,127.81,0.03]
[1742526614205,40.23447976,127.82,127.81,0.03]
[1742526615202,47.37447976,127.82,127.81,0.03]
[1742526616012,39.55097976,127.82,127.81,0.03]
[1742526618221,47.37447976,127.82,127.81,0.03]
[1742526620003,20.9013309,127.82,127.81,0.03]
[1742526621907,39.55097976,127.82,127.81,0.03]